Cogmind - Beta 16.1 @@@ ROGUE MODE // 2026.02.25 @ 09:56:18 Player: SunShine214 Result: Destroyed by P-60 Hacker with Shock Rifle Performance ------------- Evolutions (4) 2000 Regions Visited (8) 1600 Robots Destroyed (101) 505 Value Destroyed (2820) 2820 Prototype IDs (8) 160 Alien Tech Used (0) 0 Bonus (0) 0 TOTAL SCORE: 7085 Bonus ------- None Cogmind --------- Core Integrity 0/850 Matter 255/300 Energy 100/100 System Corruption 19% Temperature Cool (0) Movement Core (50) Location -6/Factory Parts ------- > --- POWER (1) -------- (None) > --- PROPULSION (4) --- (None) > --- UTILITY (8) ------ Enhanced Optical Array Improved Targeting Computer Core Analyzer Focal Shield > --- WEAPON (2) ------- (None) > --- INVENTORY (5) ---- Improved Deuterium Engine Layered Light Armor Plating Layered Medium Armor Plating Thermal Defense Suite Power Sword Peak State ------------ > --- POWER ------------ Improved Deuterium Engine > --- PROPULSION ------- Light Armored Exoskeleton Light Armored Exoskeleton > --- UTILITY ---------- Enhanced Optical Array Improved Targeting Computer Core Analyzer Improved Core Shielding Layered Medium Armor Plating Focal Shield Hacking Suite Improved Hacking Suite > --- WEAPON ----------- Scythe Power Sword > --- INVENTORY -------- VTOL Module Improved VTOL Module Layered Light Armor Plating Layered Medium Armor Plating Thermal Defense Suite [Rating: 64] Favorites ----------- Power Light Ion Engine Engine Light Ion Engine Power Core Micro Nuclear Core Propulsion Light Treads Treads Light Treads Leg Aluminum Leg Wheel Wheel Flight Unit Improved VTOL Module Utility Hacking Suite Device Sensor Array Storage Small Storage Unit Processor Signal Interpreter Hackware Hacking Suite Protection Improved Core Shielding Weapon Medium Laser Energy Gun Medium Laser Energy Cannon Improved EM Pulse Cannon Ballistic Gun Light Assault Rifle Launcher Grenade Launcher Impact Weapon Heavy Hammer Slashing Weapon Power Sword Build | -11 -10 -9 -8 -8 -7 -7 -7 -6 ------- Run | Yrd Mat Mat Mat Sto Fac Low Low Fac Slots Evolved 8 | . . 2 2 . 2 . . 2 Power . | . . . . . . . . . Propulsion 2 | . . . 1 . . . . 1 Utility 6 | . . 2 1 . 2 . . 1 Weapon . | . . . . . . . . . Parts Attached 77 | 8 1 20 . 14 12 2 1 19 Power 8 | 1 . 1 . 2 1 . . 3 Engine 4 | 1 . . . 1 . . . 2 Core 4 | . . 1 . 1 1 . . 1 Reactor . | . . . . . . . . . Propulsion 20 | 2 . 7 . 5 3 . . 3 Treads 7 | 2 . . . 2 3 . . . Leg 7 | . . 3 . 2 . . . 2 Wheel 1 | . . 1 . . . . . . Hover . | . . . . . . . . . Flight 5 | . . 3 . 1 . . . 1 Utility 28 | 2 . 4 . 4 6 . 1 11 Device 7 | 1 . 2 . . 1 . . 3 Storage 1 | 1 . . . . . . . . Processor 10 | . . 2 . 3 1 . 1 3 Hackware 5 | . . . . . 3 . . 2 Protection 5 | . . . . 1 1 . . 3 Artifact . | . . . . . . . . . Weapon 21 | 3 1 8 . 3 2 2 . 2 Energy Gun 10 | 2 . 5 . 2 . 1 . . Energy Cannon 2 | . . 1 . . . 1 . . Ballistic Gun 1 | 1 . . . . . . . . Ballistic Cannon . | . . . . . . . . . Launcher 3 | . 1 . . 1 1 . . . Special Weapon . | . . . . . . . . . Impact Weapon 3 | . . 2 . . 1 . . . Slashing Weapon 2 | . . . . . . . . 2 Piercing Weapon . | . . . . . . . . . Special Melee Weapon . | . . . . . . . . . Unidentified Prototypes 8 | . . 3 . 3 1 . . 1 Corrupted Parts 4 | . . 2 . 1 1 . . . System Corruption 6 | . . 2 . 2 2 . . . Parts Lost 52 | . 1 8 . 18 2 2 . 21 Power 5 | . . . . 3 . . . 2 Propulsion 19 | . . 5 . 6 2 2 . 4 Utility 17 | . . 1 . 3 . . . 13 Weapon 11 | . 1 2 . 6 . . . 2 Highest Loss Streak 10 | . 1 3 . 10 1 2 . 6 To Critical Strikes . | . . . . . . . . . Average Backups 6 | 2 7 7 8 6 6 7 8 5 Power . | . . . . . . . 1 . Propulsion 1 | 1 1 1 . . . . . . Utility 3 | . 2 3 5 5 2 2 2 2 Weapon 2 | 1 3 2 3 . 2 3 4 1 Tool/Special . | . . . . . . . . . Unused Backups 23 | . 10 4 . 2 . 3 . 4 Power 2 | . 1 . . . . 1 . . Propulsion 3 | . 2 . . 1 . . . . Utility 9 | . 1 3 . 1 . 1 . 3 Weapon 8 | . 6 1 . . . 1 . . Tool/Special 1 | . . . . . . . . 1 Average Slot Usage (%) 83 | . 99 94 81 81 68 78 53 66 Engine 4 | . 14 6 . 5 . . . 1 Core 2 | . . 2 9 1 1 5 . 1 Treads 10 | . 27 12 . 9 9 5 . . Leg 3 | . . 3 18 8 . . . 6 Flight 1 | . . 3 . . 2 1 7 2 Device 10 | . 14 17 9 7 . 6 . 3 Storage 8 | . 14 11 9 9 7 7 7 1 Processor 15 | . . 14 18 24 15 15 15 19 Hackware 7 | . . . . . 19 23 23 17 Energy Gun 8 | . 21 14 18 3 . 2 . . Launcher 2 | . 6 . . 5 2 1 . . Impact Weapon 3 | . . 5 . 6 3 2 . . Slashing Weapon 1 | . . . . . . . . 6 Peak Build Rating 64 | 9 10 21 21 23 38 38 25 64 Average Rating 22 | 6 9 14 21 18 27 32 22 43 On Entrance 17 | . 9 10 21 21 10 35 22 25 Avg Prop Armor Cover (%) 7 | . . 7 . 7 . . . . Naked Turns . | . . . . . . . . . Heaviest Build 28 | 13 14 19 19 19 25 26 5 28 Greatest Support 60 | 40 40 40 20 43 56 48 5 60 Greatest Overweight (x) 7 | . . 4 . 5 . 7 . 2 Average Overweight (x) . | . . . . . . 1 . . Largest Inventory Capacity 8 | 8 8 8 8 8 8 8 8 8 Average Capacity 7 | 6 8 8 8 8 8 8 8 5 Most Carried 8 | 5 8 8 8 8 8 8 8 8 Average Carried 6 | 2 7 7 8 6 6 7 8 5 Final Capacity 8 | 8 8 8 8 8 8 8 8 5 Final Carried 8 | 5 8 8 8 5 8 8 8 5 Class Distribution -------------------- 40% | Mutant 20% | Hacker-Mutant 18% | Assassin 7% | Skirmisher 7% | Hacker-Assassin 6% | Hacker-Skirmisher Dominant Class ---------------- Mutant | -10/Materials Mutant | -9/Materials Mutant | -8/Materials Assassin | -8/Storage Hacker-Mutant | -7/Factory Hacker-Skirmisher | -7/Lower Caves Hacker-Skirmisher | -7/Lower Caves Hacker-Mutant | -6/Factory Resources | -11 -10 -9 -8 -8 -7 -7 -7 -6 ----------- Run | Yrd Mat Mat Mat Sto Fac Low Low Fac Matter Collected 1533 | 278 100 438 . 227 74 178 . 238 Remotely . | . . . . . . . . . Salvage Created 3595 | 103 299 1213 . 848 99 229 . 804 Parts 169 | 7 29 67 . 26 6 1 . 33 Haulers Intercepted 3 | . . 2 . 1 . . . . Recyclers Shooed 2 | . . 1 . 1 . . . . Parts Field Recycled . | . . . . . . . . . Retrieved Matter . | . . . . . . . . . Parts Self-Destructed . | . . . . . . . . . Prevented 1 | . . . . . . 1 . . Parts Restored . | . . . . . . . . . Kills | -11 -10 -9 -8 -8 -7 -7 -7 -6 ------- Run | Yrd Mat Mat Mat Sto Fac Low Low Fac Combat Hostiles Destroyed 71 | . 14 26 . 14 1 3 . 13 Melee 18 | . . 5 . . . . . 13 Guns 18 | . 4 12 . 1 . 1 . . Cannons 1 | . . . . . . 1 . . AOE 26 | . 10 8 . 8 . . . . Classes Destroyed 15 | 2 5 4 . 2 . . . 2 Worker 8 | . 2 3 . 2 . . . 1 Builder 2 | . . 1 . . 1 . . . Tunneler 2 | 2 . . . . . . . . Hauler 3 | . . 2 . 1 . . . . Recycler 5 | 1 . . . 3 . . . 1 Mechanic 1 | . . . . 1 . . . . Operator 5 | . 1 3 . . . . . 1 Watcher 4 | . 1 1 . 2 . . . . Swarmer 18 | . 9 4 . . . . . 5 Grunt 33 | . 5 16 . 8 . 2 . 2 Brawler 2 | . . 1 . . . . . 1 Duelist 2 | . . . . 1 . 1 . . Sentry 14 | . . 5 . 5 1 . . 3 Hunter 1 | . . . . . . . . 1 Programmer 1 | . . . . . . . . 1 Decomposer 2 | . . . . . . 2 . . Best Kill Streak 8 | 3 8 8 . 5 1 3 . 5 Combat Bots Only 6 | . 6 4 . 3 1 3 . 5 Max Kills in Single Turn 3 | 1 3 3 . 2 1 1 . 1 Gunslinging . | . . . . . . . . . Exploded 3 | . 3 3 . 1 . . . . Melee 1 | . . 1 . . . . . 1 Uniques/NPCs Destroyed . | . . . . . . . . . Combat | -11 -10 -9 -8 -8 -7 -7 -7 -6 -------- Run | Yrd Mat Mat Mat Sto Fac Low Low Fac Hostile Shots Fired 864 | . 38 107 5 157 99 33 19 406 Missed 279 | . 11 30 1 34 41 16 14 132 Hits 585 | . 27 77 4 123 58 17 5 274 Melee 11 | . . . . 3 . 4 . 4 Projectile 574 | . 27 77 4 120 58 13 5 270 AOE 1 | . . . . . . . . 1 Critical Strikes 14 | . 2 2 . 3 . 1 . 6 Actively Blocked 1 | . . . . . . . . 1 Damage Taken 7648 | . 317 943 62 1955 463 334 48 3526 Core 1872 | . 59 258 . 519 110 28 37 861 Absorbed by Shields . | . . . . . . . . . Redirected to Shielding 100 | . . . . . . . . 100 Ignored by Resistances 157 | . . . . . . . . 157 Regen/Repaired (Parts) 105 | . . 105 . . . . . . Core Remaining (%) 58 | 100 76 35 . 5 . . 75 . Volleys Fired 128 | 6 22 49 . 33 4 14 . . Largest 2 | 2 2 2 . 2 1 2 . . Hottest 138 | 90 90 100 . 116 39 138 . . Shots Fired 199 | 12 43 76 . 43 4 21 . . Gun 147 | 12 37 64 . 28 . 6 . . Cannon 13 | . . . . . . 13 . . Launcher 39 | . 6 12 . 15 4 2 . . Special . | . . . . . . . . . Kinetic . | . . . . . . . . . Thermal 73 | 6 22 20 . 19 . 6 . . Explosive 33 | . 6 12 . 15 . . . . Electromagnetic 93 | 6 15 44 . 9 4 15 . . Robot Hit Streak 20 | 2 10 9 . 20 7 7 . . Robot Miss Streak 3 | 2 3 3 . 3 . 2 . . Penetration Max . | . . . . . . . . . Secondary Targets 1 | . 1 . . . . . . . Max Gunslinging Chain 1 | . 1 . . . . . . . Shots Hit Robots 231 | 6 25 84 . 52 8 14 . 42 Core Hits 135 | 3 26 49 . 29 2 7 . 19 Critical Kills . | . . . . . . . . . Critical Parts Destroyed 7 | . . 3 . 4 . . . . Critical Strikes 18 | 1 1 5 . 5 . 1 . 5 Burn 5 | 1 1 2 . 1 . . . . Corrupt 1 | . . . . . . 1 . . Smash 7 | . . 3 . 4 . . . . Sever 5 | . . . . . . . . 5 Melee Attacks 139 | . . 34 . 26 4 . . 75 Impact 64 | . . 34 . 26 4 . . . Slashing 75 | . . . . . . . . 75 Piercing . | . . . . . . . . . Sneak Attacks 12 | . . 3 . 6 . . . 3 Combat Hostiles . | . . . . . . . . . Follow-up Attacks 3 | . . . . . . . . 3 Damage Inflicted 8423 | 104 970 2576 . 2294 205 524 . 1750 Guns 1702 | 74 277 834 . 441 . 76 . . Cannons 238 | . . . . . . 238 . . Explosions 2679 | 25 691 633 . 1003 117 210 . . Melee 3789 | . . 1101 . 850 88 . . 1750 Ramming 15 | 5 2 8 . . . . . . Kinetic . | . . . . . . . . . Thermal 982 | 87 256 163 . 299 . 177 . . Explosive 2236 | . 600 633 . 1003 . . . . Electromagnetic 1401 | 12 112 671 . 142 117 347 . . Impact 2039 | . . 1101 . 850 88 . . . Slashing 1750 | . . . . . . . . 1750 Piercing . | . . . . . . . . . Highest Corruption 18 | . . 2 . 2 2 2 2 18 Average Corruption 4 | . . 1 . 2 2 2 2 11 Corruption Purged . | . . . . . . . . . Corruption Blocked . | . . . . . . . . . Effects 50 | . . 2 . 7 . 10 . 31 Message Errors 1 | . . . . . . . . 1 Matter Fused 13 | . . . . 1 . 2 . 10 Heat Flow Errors 5 | . . . . 1 . 2 . 2 Energy Discharges 9 | . . 2 . 1 . 2 . 4 Parts Rejected 1 | . . . . . . . . 1 Parts Fused 1 | . . . . . . . . 1 Data Loss (minor) 8 | . . . . 1 . 2 . 5 Data Loss (major) 4 | . . . . 1 . 1 . 2 Alerts 1 | . . . . 1 . . . . Misdirections 5 | . . . . . . . . 5 Weapon Failures 2 | . . . . 1 . 1 . . Overload Shots . | . . . . . . . . . Overflow Damage 801 | . 18 320 . 282 4 . . 177 Projectiles . | . . . . . . . . . Explosions 24 | . 18 3 . 3 . . . . Melee 777 | . . 317 . 279 4 . . 177 Knockbacks 8 | . . 5 . 3 . . . . Impact 8 | . . 5 . 3 . . . . Kinetic . | . . . . . . . . . Secondary . | . . . . . . . . . Self-Inflicted Damage 176 | . 65 31 . 61 19 . . . Shots 14 | . 5 2 . 3 4 . . . Rammed 7 | 2 2 2 . 1 . . . . Targets Rammed 9 | 2 2 4 . 1 . . . . Kicked 2 | . . 2 . . . . . . Crushed . | . . . . . . . . . Highest Temperature 263 | 106 220 135 . 211 15 263 . 246 Average Temperature 52 | 54 78 25 . 58 13 50 . 108 Received Heat Transfer 2295 | . 96 447 18 765 144 117 6 702 Siege Activations . | . . . . . . . . . Martial Activations . | . . . . . . . . . Shielding Activations . | . . . . . . . . . Robots Disrupted 1 | . . . . 1 . . . . Combat Hostiles . | . . . . . . . . . Robots Corrupted 12 | . . 3 . 7 1 1 . . Combat Hostiles 7 | . . 1 . 4 1 1 . . Parts Fried 19 | . . 5 . 8 2 4 . . Impact Corruptions 22 | . . 9 . 12 1 . . . Robots Melted 1 | . . . . 1 . . . . Combat Hostiles 1 | . . . . 1 . . . . Parts Melted 5 | 1 1 2 . 1 . . . . Heat Transferred 2470 | 309 655 629 . 629 . 248 . . Parts Sabotaged . | . . . . . . . . . Parts Stolen . | . . . . . . . . . Parts Stripped . | . . . . . . . . . Power Chain Reactions 6 | 1 2 . . . 1 2 . . Alert | -11 -10 -9 -8 -8 -7 -7 -7 -6 ------- Run | Yrd Mat Mat Mat Sto Fac Low Low Fac Maximum Alert Level 1 | . 1 1 . . . . . . Low Security (%) 86 | 100 70 74 100 100 100 . . 100 Level 1 13 | . 29 25 . . . . . . Level 2 . | . . . . . . . . . Level 3 . | . . . . . . . . . Level 4 . | . . . . . . . . . Level 5 . | . . . . . . . . . High Security . | . . . . . . . . . Max Security . | . . . . . . . . . Peak Influence 352 | 10 289 352 144 148 38 . . 156 Initial 144 | . . 98 144 43 38 . . 21 Average 95 | 1 101 159 126 62 9 . . 42 Influence Increases 2540 | 15 420 859 . 532 35 190 . 489 Destroy 0b10 Robot/C 1420 | . 280 520 . 280 20 60 . 260 Destroy 0b10 Robot/NC 150 | 15 20 50 . 45 5 . . 15 Destroy Leader 334 | . 42 136 . 86 10 10 . 50 Successful Hack 37 | . 5 8 . . . . . 24 Disable Machine 45 | . 15 15 . 15 . . . . Destroy Structure 209 | . 58 55 . 76 . . . 20 Partial Spotted 75 | . . 30 . 30 . . . 15 Lose Combat Pursuer 270 | . . 45 . . . 120 . 105 Influence Decreases 2442 | 15 187 749 239 551 100 166 9 426 Entered New Map 473 | . . 135 199 61 47 8 9 14 Time Decay 1518 | 15 177 534 40 330 53 138 . 231 Lost Part 451 | . 10 80 . 160 . 20 . 181 Squads Dispatched 17 | . 1 5 . 2 1 . . 8 Investigation 6 | . . 3 . 1 . . . 2 Extermination 1 | . . . . . . . . 1 Reinforcement 7 | . 1 2 . 1 1 . . 2 Assault . | . . . . . . . . . Garrison 3 | . . . . . . . . 3 Intercept . | . . . . . . . . . Searches Triggered . | . . . . . . . . . Construction Impeded 1 | . . . . . 1 . . . Haulers Reinforced . | . . . . . . . . . Active Scanning Responses . | . . . . . . . . . Cargo Convoy Interrupts 1 | . . . . . . . . 1 Stealth | -11 -10 -9 -8 -8 -7 -7 -7 -6 --------- Run | Yrd Mat Mat Mat Sto Fac Low Low Fac Distress Signals 5 | . 3 2 . . . . . . Communications Jammed . | . . . . . . . . . Distress Signals . | . . . . . . . . . Times Spotted 124 | . 19 41 2 23 1 11 3 24 Peak Tracking Total 6 | . 5 6 3 6 1 3 3 6 Tactical Retreats 10 | . . 3 . . . 3 . 4 Traps | -11 -10 -9 -8 -8 -7 -7 -7 -6 ------- Run | Yrd Mat Mat Mat Sto Fac Low Low Fac Traps Triggered 5 | . 2 1 . 1 . . . 1 Indirectly . | . . . . . . . . . Trap Hack Attempts . | . . . . . . . . . Triggered . | . . . . . . . . . Disarmed . | . . . . . . . . . Reprogrammed . | . . . . . . . . . Reused . | . . . . . . . . . Traps Extracted . | . . . . . . . . . Installed . | . . . . . . . . . Triggered . | . . . . . . . . . Machines | -11 -10 -9 -8 -8 -7 -7 -7 -6 ---------- Run | Yrd Mat Mat Mat Sto Fac Low Low Fac Machines Disabled 3 | . 1 1 . 1 . . . . Max in Single Turn 1 | . 1 1 . 1 . . . . Machines Repaired . | . . . . . . . . . Machines Dismantled . | . . . . . . . . . Machines Sabotaged . | . . . . . . . . . Overloaded Fab Kills . | . . . . . . . . . Hacking | -11 -10 -9 -8 -8 -7 -7 -7 -6 --------- Run | Yrd Mat Mat Mat Sto Fac Low Low Fac Machines Accessed 26 | . 1 9 1 3 3 . . 9 Terminals 20 | . 1 7 1 2 3 . . 6 Fabricators 1 | . . . . . . . . 1 Repair Stations 1 | . . 1 . . . . . . Recycling Units 1 | . . . . 1 . . . . Scanalyzers 2 | . . 1 . . . . . 1 Garrison Access 1 | . . . . . . . . 1 Total Hacks 58 | . 3 24 3 6 4 . . 18 Successful 19 | . 1 6 1 2 1 . . 8 Failed 39 | . 2 18 2 4 3 . . 10 Catastrophic 14 | . . 6 . . 2 . . 6 Database Lockouts . | . . . . . . . . . Manual 35 | . 2 17 3 3 4 . . 6 Terminals 44 | . 3 18 3 5 4 . . 11 Fabricators 3 | . . . . . . . . 3 Repair Stations 3 | . . 3 . . . . . . Recycling Units 1 | . . . . 1 . . . . Scanalyzers 5 | . . 3 . . . . . 2 Garrison Access 2 | . . . . . . . . 2 Terminal Hacks 11 | . 1 2 1 1 1 . . 5 Part Schematic 1 | . . . . . . . . 1 Robot Analysis 1 | . . . . . . . . 1 Open DSF 1 | . . . . . . . . 1 Branch Access Points 3 | . . 1 1 . . . . 1 Hauler Manifests 2 | . 1 1 . . . . . . Registered Components 2 | . . . . 1 . . . 1 Registered Prototypes 1 | . . . . . 1 . . . Fabricator Hacks 2 | . . . . . . . . 2 Load Schematic 1 | . . . . . . . . 1 Build 1 | . . . . . . . . 1 Repair Station Hacks 2 | . . 2 . . . . . . Scan Component 1 | . . 1 . . . . . . Repair 1 | . . 1 . . . . . . Recycling Unit Hacks 1 | . . . . 1 . . . . Retrieve Components 1 | . . . . 1 . . . . Scanalyzer 3 | . . 2 . . . . . 1 Retrieve Study 3 | . . 2 . . . . . 1 Garrison Access Hacks . | . . . . . . . . . Unauthorized Hacks . | . . . . . . . . . Terminals . | . . . . . . . . . Fabricators . | . . . . . . . . . Repair Stations . | . . . . . . . . . Recycling Units . | . . . . . . . . . Scanalyzers . | . . . . . . . . . Garrison Access . | . . . . . . . . . Data Cores Recovered 1 | . . 1 . . . . . . Used . | . . . . . . . . . Hacking Detections 22 | . 1 9 1 2 3 . . 6 Full Trace Events 5 | . . 3 . . . . . 2 Feedback Events 1 | . . . . . . . . 1 Hackware Fried 1 | . . . . . . . . 1 Feedback Blocked . | . . . . . . . . . Robot Schematics Acquired . | . . . . . . . . . Robots Built . | . . . . . . . . . Authchips . | . . . . . . . . . Time . | . . . . . . . . . Total Robot Build Rating . | . . . . . . . . . Part Schematics Acquired 1 | . . . . . . . . 1 Parts Built 1 | . . . . . . . . 1 Authchips . | . . . . . . . . . Time 47 | . . . . . . . . 47 Total Part Build Rating 5 | . . . . . . . . 5 Part Studies Acquired 3 | . . 2 . . . . . 1 Parts Repaired 1 | . . 1 . . . . . . Time 26 | . . 26 . . . . . . Parts Recycled . | . . . . . . . . . Recycled Matter . | . . . . . . . . . Retrieved Matter . | . . . . . . . . . Retrieved Components 3 | . . . . 3 . . . . Parts Scanalyzed . | . . . . . . . . . Part Schematics Acquired . | . . . . . . . . . Parts Damaged . | . . . . . . . . . Bothacking | -11 -10 -9 -8 -8 -7 -7 -7 -6 ------------ Run | Yrd Mat Mat Mat Sto Fac Low Low Fac Used RIF Installer . | . . . . . . . . . Robots Hacked . | . . . . . . . . . Non-combat . | . . . . . . . . . Combat . | . . . . . . . . . Robot Hacks Applied . | . . . . . . . . . Relay Couplers Released . | . . . . . . . . . Fabnet Peak Effective % . | . . . . . . . . . Robots Rewired . | . . . . . . . . . Allies Hacked . | . . . . . . . . . Hacks Repelled . | . . . . . . . . . Allies | -11 -10 -9 -8 -8 -7 -7 -7 -6 -------- Run | Yrd Mat Mat Mat Sto Fac Low Low Fac Total Allies . | . . . . . . . . . Largest Group . | . . . . . . . . . Highest-Rated Group . | . . . . . . . . . Highest-Rated Ally . | . . . . . . . . . Total Orders . | . . . . . . . . . Ally Attacks . | . . . . . . . . . Total Damage . | . . . . . . . . . Kills . | . . . . . . . . . Allies Corrupted . | . . . . . . . . . Allies Melted . | . . . . . . . . . Intel | -11 -10 -9 -8 -8 -7 -7 -7 -6 ------- Run | Yrd Mat Mat Mat Sto Fac Low Low Fac Active Infowar (turns) 4770 | 35 565 1511 86 792 232 685 19 845 Optics 2130 | . . . . 540 232 685 19 654 Sensors 3053 | . . 1469 86 683 2 624 . 189 IFF 63 | . . . . . . . . 63 Terrain 1505 | 35 565 905 . . . . . . Machine Analysis 524 | . . . . . . . 5 519 Robot Analysis Total 1 | . . . . . . . . 1 Derelict Logs Recovered 1 | . . . . . . 1 . . Drone Launches . | . . . . . . . . . Drone Recoveries . | . . . . . . . . . Exploration | -11 -10 -9 -8 -8 -7 -7 -7 -6 ------------- Run | Yrd Mat Mat Mat Sto Fac Low Low Fac Turns Passed 4872 | 134 565 1514 86 792 232 685 19 845 Spaces Moved 2992 | 62 264 833 72 411 210 479 49 612 Core 94 | 2 . 12 . 26 . 54 . . Treads 1166 | 60 264 396 . 219 84 143 . . Legs 486 | . . 97 72 101 . . . 216 Wheels 163 | . . 163 . . . . . . Hover . | . . . . . . . . . Flight 1083 | . . 165 . 65 126 282 49 396 Fastest Speed 32 | 50 160 37 120 35 35 35 35 32 Average Speed 121 | 156 160 128 120 138 85 132 35 89 Slowest Speed 400 | 160 160 250 120 300 160 400 35 175 Overloaded Moves . | . . . . . . . . . Propulsion Burnouts . | . . . . . . . . . Robots Hopped 2 | . . . . 1 . . . 1 Potential Cave-ins . | . . . . . . . . . Cave-ins Triggered . | . . . . . . . . . Exploration Rate (%) 34 | 3 49 72 9 63 6 71 14 19 Regions Visited 8 Branch Regions 3 Pre-discovered Areas . | . . . . . . . . . Known Exits Taken 6 | . . 1 1 1 1 1 1 . Unknown Exits Taken 2 | 1 1 . . . . . . . Scrap Searched 2 | . . . . . . 1 1 . Spaces Dug 33 | . . 11 . 2 . . . 20 Terrain Destroyed 238 | 2 54 63 . 91 . 8 . 20 Melee 25 | . . 3 . 2 . . . 20 Projectile . | . . . . . . . . . AOE 213 | 2 54 60 . 89 . 8 . . Terrain Rammed . | . . . . . . . . . Walls Destroyed . | . . . . . . . . . Machines Disabled . | . . . . . . . . . Actions | -11 -10 -9 -8 -8 -7 -7 -7 -6 --------- Run | Yrd Mat Mat Mat Sto Fac Low Low Fac Total 3796 | 82 367 1135 71 538 249 508 49 797 Wait 317 | . 48 145 . 43 10 3 . 68 Move 2980 | 61 263 832 71 408 209 478 48 610 Hop 2 | . . . . 1 . . . 1 Pick Up 56 | 5 16 16 . 5 4 1 . 9 Fast Attach 57 | 7 3 14 . 7 10 . 1 15 Attach 33 | . 1 10 . 7 4 2 . 9 Detach 18 | . . 5 . 1 4 4 . 4 Swap 22 | 1 . 11 . 4 . 3 . 3 Drop 38 | . 12 15 . 2 . 3 . 6 Fire 128 | 6 22 49 . 33 4 14 . . Melee 136 | . . 34 . 26 4 . . 72 Ram 1 | . . . . 1 . . . . Kick 2 | . . 2 . . . . . . Crush 6 | 2 2 2 . . . . . . Escape Stasis . | . . . . . . . . . Rewire . | . . . . . . . . . Trap . | . . . . . . . . . Miscellaneous . | . . . . . . . . . Route ------- -11/Scrapyard -10/Materials (discovered 3 exits: *Mat / [*Min x2]) -9/Materials (discovered 4 exits: *Mat x2 / *Min x2) -8/Materials -8/Storage -7/Factory -7/Lower Caves -7/Lower Caves -6/Factory (discovered 4 exits: Low x2 / Ext x2) History --------- Turn | Location | Event 33 | -11/Scrapyard | Discovered new exit (range 15) 135 | -11/Scrapyard | Entered Materials 294 | -10/Materials | Discovered new exit (range 16) 317 | -10/Materials | Build established: Mutant 406 | -10/Materials | Discovered new exit (range 11) 585 | -10/Materials | Discovered new exit (range 8) 700 | -10/Materials | Entered another Materials area 700 | -9/Materials | Evolved 2 slots: Utility x2 848 | -9/Materials | Repaired Lgt. Treads 1005 | -9/Materials | Build established: Assassin 1184 | -9/Materials | Discovered new exit (range 3) 1186 | -9/Materials | Identified exit to Materials 1569 | -9/Materials | Discovered exit to Materials (range 5) 1614 | -9/Materials | Lost 3 parts (2n1w) 1800 | -9/Materials | Identified exit to Mines 1843 | -9/Materials | Core integrity fell below 50% 1913 | -9/Materials | Build established: Mutant 2214 | -9/Materials | Entered another Materials area 2214 | -8/Materials | Evolved 2 slots: Propulsion x1, Utility x1 2223 | -8/Materials | Identified exit to Storage 2300 | -8/Materials | Entered Storage 2456 | -8/Storage | Lost 6 parts (1p2n3w) 2849 | -8/Storage | Build established: Assassin 3017 | -8/Storage | Core integrity fell below 50% 3065 | -8/Storage | Core integrity fell below 20% 3078 | -8/Storage | Discovered new exit (range 19) 3092 | -8/Storage | Identified exit to Factory 3092 | -8/Storage | Entered Factory 3092 | -7/Factory | Evolved 2 slots: Utility x2 3099 | -7/Factory | Lost 10 parts (1p3n3u3w) 3137 | -7/Factory | Discovered new exit (range 18) 3295 | -7/Factory | Identified exit to Lower Caves 3324 | -7/Factory | Entered Lower Caves 3701 | -7/Lower Caves | Learned 8 Factory zone layouts 4006 | -7/Lower Caves | Discovered new exit (range 11) 4009 | -7/Lower Caves | Identified exit to Lower Caves 4009 | -7/Lower Caves | Entered another Lower Caves area 4011 | -7/Lower Caves | Attracted the attention of an 0b10 checkpoint 4022 | -7/Lower Caves | Discovered new exit (range 11) 4027 | -7/Lower Caves | Identified exit to Factory 4028 | -7/Lower Caves | Entered Factory 4028 | -6/Factory | Evolved 2 slots: Propulsion x1, Utility x1 4029 | -6/Factory | Identified exit to Extension 4083 | -6/Factory | Identified exit to DSF 4231 | -6/Factory | System corruption reached 10% 4261 | -6/Factory | Lost 5 parts (5u) 4508 | -6/Factory | Build established: Hacker-Mutant 4509 | -6/Factory | Identified exit to Lower Caves 4581 | -6/Factory | Lost 5 parts (1p3u1w) 4652 | -6/Factory | Garrison activated, responded to threat 4724 | -6/Factory | Imp. Hacking Suite fried by hacking feedback 4768 | -6/Factory | Cargo convoy interrupted 4785 | -6/Factory | Core integrity fell below 50% 4812 | -6/Factory | Lost 6 parts (3n2u1w) 4862 | -6/Factory | Core integrity fell below 20% 4863 | -6/Factory | Fabricated Imp. Hacking Suite (x1) 4873 | -6/Factory | Destroyed by P-60 Hacker with Shock Rifle Last Messages --------------- corruption cleaned. 04853_ K-01 Serf cleans the Matter Pump. 04854_ System corrupted: Energy discharge (-37). 04854_ R-10 Processor collects Structural Scanner. 04854_ Penetrated by Slug. 04854_ IFF Parser destroyed. 04856_ K-01 Serf cleans the Matter Pump. 04857_ Penetrated by Slug. 04860_ Imp. VTOL Module destroyed. 04862_ K-01 Serf collects debris. 04863_ Fabricator completes Imp. Hacking Suite. 04864_ Slug penetrates U-05 Engineer. 04864_ U-05 Engineer destroyed. 04865_ R-10 Processor collects Lgt. Ion Engine. 04866_ K-01 Serf cleans the Matter Pump. 04867_ Penetrated by Slug. 04867_ Slug penetrates Fabricator. 04870_ R-10 Processor collects Welding Torch. 04872_ System corrupted: Matter fused (-5). Map ----- +----------------------------------------------------+ | ?????? # ### "Y" #?????? | | ??????" # #?# """ #?????? | | ??????" # ######### #?# ] #?????? | | ??????" # ??????? # ############+#####+### | | ?????? # ??????" + | | ??????? # ?????????# | | ??????? + ?????????# | | ??????" # ??????????# | | ????? # ???????????# """ | | ????"""?###???????????# """ #########+######### | | ??????????????????????# """ ## #???? | | ??????????????????????# ## """ """ #???? | | ??????????????????????#m """ ## """ """ #???? | | ??????????????????????# k""" ## """ """ #???? | | ??????????????????????# """ k## #???? | | ??????????????????????# ## """ """ #???? | | ??????????????????????# """ ## """ """ #???? | | ??????????????????????# """R ## """ """ #???? | | ??????????????????????# """ ## #???? | | ??????????????????????# ## #???? | | ???????????????????#### ## [ #???? | | ???????????????????#""" ## #???? | | ???????????????????#"R ph""" ###############???? | | ???????????????????#""" % """ #?????????????????? | | ???????????????????# "" !" #??########???????? | | ???????????????????#### @"F" #??# #???????? | | ??????????????????????#R """ #??# #???????? | | ??????????????????????# #### #???????? | | ??????????????????????#R= + #???????? | | ?????????????????????? ####### "T" #???????? | | ?????????????????????### T###?????# #???????? | | ???????????????????????####???????########???????? | | ?????????????????????????????????????????????????? | | ?????????????????????????????????????????????????? | | ?????????????????????????????????????????????????? | | ?????????????????????????????????????????????????? | | ?????????????????????????????????????????????????? | | ?????????????????????????????????????????????????? | | ?????????????????????????????????????????????????? | | ?????????????????????????????????????????????????? | | ?????????????????????????????????????????????????? | | ?????????????????????????????????????????????????? | | ?????????????????????????????????????????????????? | | ?????????????????????????????????????????????????? | | ?????????????????????????????????????????????????? | | ?????????????????????????????????????????????????? | | ?????????????????????????????????????????????????? | | ?????????????????????????????????????????????????? | | ?????????????????????????????????????????????????? | | ?????????????????????????????????????????????????? | +----------------------------------------------------+ Best States ------------- Heat Dissipation 37 Energy Generation 16 Energy Capacity 290 Matter Stores 300 Matter Capacity 300 Sight Range 22 Robot Scan Range 15 Terrain Scan Range 16 Terrain Scan Density 10 Armor Coverage 375 Resistance: KI 20 Core Shielding 30 Evasion (%) 63 Targeting Accuracy 6 Melee Accuracy 10 Core Analysis 6 Recoil Reduction 2 Offensive Hacking 32 Defensive Hacking 10 Item Schematics ----------------- Imp. Hacking Suite | -6/Factory | Hacked Robot Schematics ------------------ None Fabricated ------------ Imp. Hacking Suite | x1 | -6/Factory Repaired ---------- Lgt. Treads | 25% | -9/Materials Studied --------- Flight Unit | -9/Materials | Hacked Hvy. Hammer | -9/Materials | Hacked VTOL Module | -6/Factory | Hacked Alien Tech Used ----------------- None Achievements -------------- None Challenges ------------ None Game ------ Seed SurveybotBlastDiverter Manual? 0 Play Time 00:51:08 Cumulative 94.7 hours Start 2026.02.25 @ 08:57:37 End 2026.02.25 @ 09:56:18 Sessions 1 Manual Loads 0 Difficulty Rogue Special Mode None Game No. 148 Rogue 148 Adventurer 0 Explorer 0 Win Type - Total 1 Types 1/0/0/0/0/0/0/0/0/0 Lore% 44 Gallery% 49 Achievement% 35 Wizard Run 0 Options --------- Layout 1 ASCII 0 Keyboard 1 Movement Arrows Keybinds 0 Fullscreen 1 Font 24/Smallcaps Map View 50x35 Zoom Use 0% Tactical HUD 1 Map Filters NONE Filters NONE Steam 1 RUN: c1db8cf0-1f04-4ee8-a5fd-5a0cdcd4a570